[Event "FIDE WCCC Girls-10 2024"]
[Site "Montesilvano"]
[Date "2024.11.23"]
[Round "8.13"]
[White "Trzcinska, Weronika"]
[Black "Mukhorina, Mariya Dm"]
[Result "0-1"]
[Annotator "NA RC"]
[ECO "B28"]
[WhiteElo "1653"]
[BlackElo "1567"]
[PlyCount "88"]
[EventDate "2024.11.18"]
[EventType "swiss"]
[EventCountry "ITA"]
[SourceTitle "playchess.com"]
[Source "ChessBase"]
[SourceQuality "1"]
[TimeControl "5400+30"]

1. e4 {[%emt 0:00:01]} c5 {[%emt 0:00:17]} 2. Nf3 {[%emt 0:00:14]} a6 {[%emt 0:00:04]} 3. a4 {[%emt 0:01:20]} Nc6 {[%emt 0:03:45]} 4. Nc3 {[%emt 0:01:57]} g6 {[%emt 0:01:39]} 5. d4 {[%emt 0:02:01]} cxd4 {[%emt 0:00:23]} 6. Nxd4 {[%emt 0:00:41]} Bg7 {[%emt 0:00:34]} 7. Nxc6 {[%emt 0:02:43]} bxc6 {[%emt 0:00:18]} 8. Bd2 {[%emt 0:01:01]} d5 {[%emt 0:05:00]} 9. exd5 {[%emt 0:02:57]} cxd5 {[%emt 0:01:24]} 10. Bd3 {[%emt 0:06:00]} e6 {[%emt 0:02:48]} 11. O-O {[%emt 0:02:40]} Ne7 {[%emt 0:01:10]} 12. Rb1 {[%emt 0:07:40]} O-O {[%emt 0:00:24]} 13. Ne2 {[%emt 0:02:17]} Bb7 {[%emt 0:02:35]} 14. Bc3 {[%emt 0:02:34]} d4 {[%emt 0:01:01]} 15. Bb4 {[%emt 0:00:42]} Re8 {[%emt 0:01:19]} 16. Bxe7 {[%emt 0:06:43]} Rxe7 {[%emt 0:01:43]} 17. Ng3 {[%emt 0:00:48]} Rc8 {[%emt 0:06:03]} 18. b4 {[%emt 0:08:18]} Rec7 {[%emt 0:02:07]} 19. b5 {[%emt 0:03:11]} a5 {[%emt 0:01:02]} 20. Qd2 {[%emt 0:02:45]} Rc5 {[%emt 0:04:16]} 21. Rb2 {[%emt 0:02:11]} f5 {[%emt 0:01:59]} 22. f3 {[%emt 0:04:11]} Qh4 {[%emt 0:01:27]} 23. Qxa5 {[%emt 0:08:22]} Bh6 {[%emt 0:01:57]} 24. Rd1 {[%emt 0:06:48]} Be3+ {[%emt 0:06:03]} 25. Kh1 {[%emt 0:00:43]} f4 {[%emt 0:00:22]} 26. Nf1 {[%emt 0:03:17]} Bxf3 {[%emt 0:09:03]} 27. gxf3 {[%emt 0:06:17]} Qf2 {[%emt 0:00:49]} 28. Nxe3 {[%emt 0:00:49]} Qxf3+ {[%emt 0:00:17]} 29. Ng2 {[%emt 0:00:30]} Qxd1+ {[%emt 0:00:13]} 30. Qe1 {[%emt 0:00:14]} Qg4 {[%emt 0:01:36]} 31. Qf1 {[%emt 0:02:09]} f3 {[%emt 0:01:15]} 32. Ne1 {[%emt 0:00:24]} Rf8 {[%emt 0:00:54]} 33. a5 {[%emt 0:01:34]} Re5 {[%emt 0:03:35]} 34. Rb1 {[%emt 0:02:09]} f2 {[%emt 0:07:10]} 35. Ng2 {[%emt 0:00:57]} Qh3 {[%emt 0:02:30]} 36. Be2 {[%emt 0:01:31]} Qf5 {[%emt 0:06:10]} 37. b6 {[%emt 0:04:57]} Rxe2 {[%emt 0:03:15]} 38. b7 {[%emt 0:00:49]} Qe5 {[%emt 0:00:19]} 39. a6 {[%emt 0:01:20]} Re3 {[%emt 0:03:06]} 40. a7 {[%emt 0:02:17]} Rh3 {[%emt 0:00:39]} 41. Nf4 {[%emt 0:00:18]} Qxf4 {[%emt 0:00:55]} 42. Qxh3 {[%emt 0:00:22]} Qe4+ {[%emt 0:00:08]} 43. Qg2 {[%emt 0:00:16]} f1=Q+ {[%emt 0:20:26]} 44. Rxf1 {[%emt 0:00:17]} Rxf1# {[%emt 0:00:00]} 0-1

[Event "FIDE WCCC Girls-10 2024"]
[Site "Montesilvano"]
[Date "2024.11.23"]
[Round "8.14"]
[White "Zhang, Weiai"]
[Black "Artemenko, Isabella"]
[Result "1-0"]
[Annotator "NA RC"]
[ECO "C92"]
[WhiteElo "1488"]
[BlackElo "1637"]
[PlyCount "88"]
[EventDate "2024.11.18"]
[EventType "swiss"]
[EventCountry "ITA"]
[SourceTitle "playchess.com"]
[Source "ChessBase"]
[SourceQuality "1"]
[TimeControl "5400+30"]

1. e4 {[%emt 0:00:03]} e5 {[%emt 0:00:03]} 2. Nf3 {[%emt 0:00:07]} Nc6 {[%emt 0:00:05]} 3. Bb5 {[%emt 0:00:06]} Nf6 {[%emt 0:00:11]} 4. O-O {[%emt 0:00:09]} d6 {[%emt 0:00:26]} 5. Re1 {[%emt 0:00:41]} Be7 {[%emt 0:01:43]} 6. c3 {[%emt 0:00:37]} O-O {[%emt 0:00:59]} 7. h3 {[%emt 0:00:30]} a6 {[%emt 0:00:22]} 8. Ba4 {[%emt 0:00:07]} b5 {[%emt 0:00:12]} 9. Bb3 {[%emt 0:00:10]} Bb7 {[%emt 0:00:54]} 10. d4 {[%emt 0:00:16]} exd4 {[%emt 0:04:11]} 11. cxd4 {[%emt 0:00:07]} Na5 {[%emt 0:02:57]} 12. Bc2 {[%emt 0:01:02]} Nc4 {[%emt 0:05:58]} 13. b3 {[%emt 0:00:46]} Nb6 {[%emt 0:00:05]} 14. Nc3 {[%emt 0:01:08]} b4 {[%emt 0:04:25]} 15. Na4 {[%emt 0:01:55]} Nxa4 {[%emt 0:00:38]} 16. bxa4 {[%emt 0:00:07]} a5 {[%emt 0:00:08]} 17. d5 {[%emt 0:04:16]} Nd7 {[%emt 0:01:49]} 18. Bb2 {[%emt 0:01:31]} Bf6 {[%emt 0:00:44]} 19. Bxf6 {[%emt 0:02:38]} Qxf6 {[%emt 0:00:04]} 20. Nd4 {[%emt 0:01:49]} Nc5 {[%emt 0:05:05]} 21. Rc1 {[%emt 0:04:25]} Rfe8 {[%emt 0:07:03]} 22. Re3 {[%emt 1:19:00]} Qe7 {[%emt 0:12:50]} 23. Nf5 {[%emt 0:00:00]} Qe5 {[%emt 0:09:29]} 24. Rg3 {[%emt 0:00:00]} g6 {[%emt 0:02:27]} 25. Nh6+ {[%emt 0:00:00]} Kg7 {[%emt 0:01:46]} 26. Ng4 {[%emt 0:00:00]} Qe7 {[%emt 0:03:50]} 27. Qd4+ {[%emt 0:00:00]} f6 {[%emt 0:01:00]} 28. Rf3 {[%emt 0:00:00]} Nd7 {[%emt 0:10:15]} 29. Bd3 {[%emt 0:00:00]} Ne5 {[%emt 0:00:19]} 30. Rxf6 {[%emt 0:00:00]} Bc8 {[%emt 0:09:39]} 31. Re6 {[%emt 0:00:00]} Bxe6 {[%emt 0:00:46]} 32. dxe6 {[%emt 0:00:00]} c5 {[%emt 0:00:22]} 33. Qb2 {[%emt 0:00:00]} h5 {[%emt 0:15:24]} 34. Nxe5 {[%emt 0:00:00]} dxe5 {[%emt 0:00:05]} 35. Qxe5+ {[%emt 0:00:00]} Qf6 {[%emt 0:00:14]} 36. Qc7+ {[%emt 0:02:55]} Kh6 {[%emt 0:01:07]} 37. Qxc5 {[%emt 0:00:53]} Qxe6 {[%emt 0:00:52]} 38. Qe3+ {[%emt 0:00:39]} Kh7 {[%emt 0:00:31]} 39. Rc7+ {[%emt 0:01:08]} Re7 {[%emt 0:00:16]} 40. Rxe7+ {[%emt 0:00:50]} Qxe7 {[%emt 0:00:04]} 41. Bc4 {[%emt 0:01:26]} Re8 {[%emt 0:00:43]} 42. f3 {[%emt 0:00:42]} Ra8 {[%emt 0:00:40]} 43. Kf1 {[%emt 0:00:55]} Qd7 {[%emt 0:00:35]} 44. Bb3 {[%emt 0:00:34]} Rb8 {[%emt 0:01:14]} 1-0

[Event "FIDE WCCC Girls-10 2024"]
[Site "Montesilvano"]
[Date "2024.11.23"]
[Round "8.15"]
[White "Kuvandikova, Nafisa"]
[Black "Samhita Pungavanam"]
[Result "1-0"]
[Annotator "NA RC"]
[ECO "B19"]
[WhiteElo "1512"]
[BlackElo "1752"]
[PlyCount "111"]
[EventDate "2024.11.18"]
[EventType "swiss"]
[EventCountry "ITA"]
[SourceTitle "playchess.com"]
[Source "ChessBase"]
[SourceQuality "1"]
[TimeControl "5400+30"]

1. e4 {[%emt 0:00:17]} c6 {[%emt 0:00:21]} 2. d4 {[%emt 0:00:57]} d5 {[%emt 0:00:58]} 3. Nc3 {[%emt 0:00:27]} dxe4 {[%emt 0:00:37]} 4. Nxe4 {[%emt 0:00:43]} Bf5 {[%emt 0:01:36]} 5. Ng3 {[%emt 0:01:00]} Bg6 {[%emt 0:01:10]} 6. h4 {[%emt 0:01:56]} h6 {[%emt 0:00:43]} 7. Nf3 {[%emt 0:00:31]} Nd7 {[%emt 0:00:59]} 8. h5 {[%emt 0:02:51]} Bh7 {[%emt 0:00:09]} 9. Bd3 {[%emt 0:00:31]} Bxd3 {[%emt 0:00:24]} 10. Qxd3 {[%emt 0:00:28]} e6 {[%emt 0:00:11]} 11. c4 {[%emt 0:01:42]} Ngf6 {[%emt 0:03:21]} 12. Bd2 {[%emt 0:00:58]} Be7 {[%emt 0:01:35]} 13. O-O-O {[%emt 0:01:50]} O-O {[%emt 0:09:44]} 14. Ne2 {[%emt 0:03:02]} c5 {[%emt 0:04:31]} 15. Rdg1 {[%emt 0:02:10]} cxd4 {[%emt 0:03:16]} 16. Nfxd4 {[%emt 0:00:44]} Nc5 {[%emt 0:05:38]} 17. Qf3 {[%emt 0:08:31]} Nce4 {[%emt 0:11:25]} 18. Be3 {[%emt 0:15:22]} Rc8 {[%emt 0:03:59]} 19. b3 {[%emt 0:02:32]} Qa5 {[%emt 0:12:29]} 20. Kb1 {[%emt 0:02:26]} Ng5 {[%emt 0:06:31]} 21. Qxb7 {[%emt 0:01:43]} Ba3 {[%emt 0:03:00]} 22. Qb5 {[%emt 0:00:52]} Bb4 {[%emt 0:07:04]} 23. Qxa5 {[%emt 0:01:08]} Bxa5 {[%emt 0:00:02]} 24. f3 {[%emt 0:04:13]} Bb6 {[%emt 0:03:44]} 25. f4 {[%emt 0:11:03]} Nge4 {[%emt 0:01:41]} 26. g4 {[%emt 0:05:50]} Kh7 {[%emt 0:07:20]} 27. g5 {[%emt 0:01:12]} Nd7 {[%emt 0:00:52]} 28. Ng3 {[%emt 0:02:25]} Bxd4 {[%emt 0:00:50]} 29. Bxd4 {[%emt 0:00:35]} Nd2+ {[%emt 0:00:15]} 30. Kc2 {[%emt 0:00:35]} Nf3 {[%emt 0:00:38]} 31. Rd1 {[%emt 0:03:07]} Nc5 {[%emt 0:02:13]} 32. Bxc5 {[%emt 0:00:58]} Rxc5 {[%emt 0:00:04]} 33. Rd3 {[%emt 0:01:56]} Nxg5 {[%emt 0:02:33]} 34. fxg5 {[%emt 0:03:16]} Rxg5 {[%emt 0:00:12]} 35. Kc3 {[%emt 0:01:44]} f5 {[%emt 0:01:35]} 36. c5 {[%emt 0:01:04]} f4 {[%emt 0:00:25]} 37. Ne4 {[%emt 0:00:32]} Re5 {[%emt 0:00:09]} 38. Rd4 {[%emt 0:00:56]} f3 {[%emt 0:00:19]} 39. b4 {[%emt 0:00:22]} a5 {[%emt 0:01:44]} 40. a3 {[%emt 0:00:29]} f2 {[%emt 0:00:53]} 41. Rf1 {[%emt 0:18:02]} Rf3+ {[%emt 0:01:09]} 42. Rd3 {[%emt 0:00:00]} Rf4 {[%emt 0:02:43]} 43. Nd2 {[%emt 0:00:00]} Rxh5 {[%emt 0:00:35]} 44. c6 {[%emt 0:00:00]} Rf8 {[%emt 0:00:56]} 45. Kc4 {[%emt 0:00:00]} Rf4+ {[%emt 0:00:28]} 46. Rd4 {[%emt 0:00:00]} Rf8 {[%emt 0:00:10]} 47. b5 {[%emt 0:00:00]} e5 {[%emt 0:01:01]} 48. Rd5 {[%emt 0:00:00]} Rh4+ {[%emt 0:00:10]} 49. Kc5 {[%emt 0:00:00]} e4 {[%emt 0:00:38]} 50. Re5 {[%emt 0:04:30]} g5 {[%emt 0:01:26]} 51. Nxe4 {[%emt 0:00:00]} Rhf4 {[%emt 0:00:30]} 52. c7 {[%emt 0:00:00]} g4 {[%emt 0:00:31]} 53. b6 {[%emt 0:00:00]} Rc8 {[%emt 0:00:50]} 54. Rxf2 {[%emt 0:00:00]} Rxf2 {[%emt 0:00:12]} 55. Nxf2 {[%emt 0:00:00]} g3 {[%emt 0:00:06]} 56. Nh3 {[%emt 0:03:00]} 1-0

[Event "FIDE WCCC Girls-10 2024"]
[Site "Montesilvano"]
[Date "2024.11.23"]
[Round "8.16"]
[White "Bhavanya Panchumarthi"]
[Black "Norkulova, Malika"]
[Result "1/2-1/2"]
[Annotator "NA RC"]
[ECO "D02"]
[WhiteElo "1703"]
[BlackElo "1480"]
[PlyCount "100"]
[EventDate "2024.11.18"]
[EventType "swiss"]
[EventCountry "ITA"]
[SourceTitle "playchess.com"]
[Source "ChessBase"]
[SourceQuality "1"]
[TimeControl "5400+30"]

1. d4 {[%emt 0:00:02]} d5 {[%emt 0:03:27]} 2. Bf4 {[%emt 0:00:12]} e6 {[%emt 0:00:08]} 3. e3 {[%emt 0:00:14]} Nf6 {[%emt 0:00:09]} 4. Nf3 {[%emt 0:00:27]} Bd6 {[%emt 0:00:09]} 5. Ne5 {[%emt 0:00:15]} O-O {[%emt 0:00:29]} 6. Bd3 {[%emt 0:00:10]} c5 {[%emt 0:00:10]} 7. c3 {[%emt 0:00:16]} b6 {[%emt 0:00:09]} 8. Nd2 {[%emt 0:02:46]} Bb7 {[%emt 0:00:09]} 9. Qf3 {[%emt 0:01:37]} Qc7 {[%emt 0:05:26]} 10. Qh3 {[%emt 0:01:41]} Nbd7 {[%emt 0:09:14]} 11. Ndf3 {[%emt 0:02:42]} Ne4 {[%emt 0:08:36]} 12. O-O {[%emt 0:08:00]} Ndf6 {[%emt 0:06:10]} 13. Ng5 {[%emt 0:16:36]} Nxg5 {[%emt 0:24:20]} 14. Bxg5 {[%emt 0:01:58]} Ne4 {[%emt 0:02:18]} 15. Bf4 {[%emt 0:02:17]} f5 {[%emt 0:01:04]} 16. f3 {[%emt 0:03:41]} Nf6 {[%emt 0:03:27]} 17. Rae1 {[%emt 0:10:24]} Nd7 {[%emt 0:01:36]} 18. Nxd7 {[%emt 0:01:52]} Qxd7 {[%emt 0:00:21]} 19. Bxd6 {[%emt 0:01:03]} Qxd6 {[%emt 0:00:08]} 20. Rf2 {[%emt 0:01:24]} Rae8 {[%emt 0:02:27]} 21. f4 {[%emt 0:03:38]} Rf6 {[%emt 0:03:16]} 22. Qh5 {[%emt 0:06:22]} Ref8 {[%emt 0:01:55]} 23. h3 {[%emt 0:01:52]} c4 {[%emt 0:01:26]} 24. Bf1 {[%emt 0:02:01]} b5 {[%emt 0:01:15]} 25. Qf3 {[%emt 0:01:32]} a5 {[%emt 0:01:05]} 26. Ra1 {[%emt 0:06:12]} b4 {[%emt 0:03:32]} 27. b3 {[%emt 0:06:37]} Ba6 {[%emt 0:01:58]} 28. cxb4 {[%emt 0:01:53]} axb4 {[%emt 0:01:15]} 29. Qe2 {[%emt 0:04:46]} Ra8 {[%emt 0:01:47]} 30. Qc2 {[%emt 0:00:59]} c3 {[%emt 0:03:39]} 31. Bxa6 {[%emt 0:03:37]} Rxa6 {[%emt 0:01:01]} 32. Re2 {[%emt 0:01:02]} g5 {[%emt 0:04:26]} 33. g3 {[%emt 0:01:53]} Rg6 {[%emt 0:00:22]} 34. Kh2 {[%emt 0:00:19]} Rg7 {[%emt 0:02:22]} 35. Rg2 {[%emt 0:00:53]} Raa7 {[%emt 0:01:19]} 36. Rag1 {[%emt 0:01:12]} g4 {[%emt 0:00:32]} 37. h4 {[%emt 0:00:15]} h5 {[%emt 0:00:35]} 38. Ra1 {[%emt 0:00:14]} Ra3 {[%emt 0:00:08]} 39. Re2 {[%emt 0:00:28]} Rga7 {[%emt 0:00:19]} 40. Kg2 {[%emt 0:00:36]} R7a5 {[%emt 0:00:41]} 41. Kf2 {[%emt 0:01:03]} Qa6 {[%emt 0:00:52]} 42. Ke1 {[%emt 0:00:20]} Kf7 {[%emt 0:00:51]} 43. Kd1 {[%emt 0:06:39]} Qb5 {[%emt 0:00:11]} 44. Qb1 {[%emt 0:00:00]} Ra7 {[%emt 0:00:32]} 45. Ke1 {[%emt 0:00:00]} Rc7 {[%emt 0:00:43]} 46. Qc2 {[%emt 0:00:00]} Rca7 {[%emt 0:00:11]} 47. Qb1 {[%emt 0:00:00]} Rc7 {[%emt 0:00:05]} 48. Qc2 {[%emt 0:00:00]} Rca7 {[%emt 0:00:06]} 49. Qb1 {[%emt 0:00:00]} Rc7 {[%emt 0:00:04]} 50. Qc2 {[%emt 0:00:00]} Rca7 {[%emt 0:00:04]} 1/2-1/2

[Event "FIDE WCCC Girls-10 2024"]
[Site "Montesilvano"]
[Date "2024.11.23"]
[Round "8.17"]
[White "Li, Wan Qin"]
[Black "Mandukhai, Munkhbat"]
[Result "1/2-1/2"]
[Annotator "NA RC"]
[ECO "E14"]
[WhiteElo "1628"]
[BlackElo "1645"]
[PlyCount "99"]
[EventDate "2024.11.18"]
[EventType "swiss"]
[EventCountry "ITA"]
[SourceTitle "playchess.com"]
[Source "ChessBase"]
[SourceQuality "1"]
[TimeControl "5400+30"]

1. c4 {[%emt 0:00:02]} e6 {[%emt 0:00:05]} 2. Nc3 {[%emt 0:00:12]} Nf6 {[%emt 0:00:08]} 3. d4 {[%emt 0:00:13]} d5 {[%emt 0:00:05]} 4. Nf3 {[%emt 0:00:24]} Be7 {[%emt 0:00:26]} 5. e3 {[%emt 0:00:58]} O-O {[%emt 0:00:34]} 6. Bd3 {[%emt 0:00:46]} b6 {[%emt 0:00:13]} 7. O-O {[%emt 0:01:02]} Bb7 {[%emt 0:00:36]} 8. Re1 {[%emt 0:02:06]} Nbd7 {[%emt 0:01:47]} 9. a3 {[%emt 0:02:42]} c5 {[%emt 0:00:21]} 10. cxd5 {[%emt 0:01:34]} exd5 {[%emt 0:00:15]} 11. Bf5 {[%emt 0:07:45]} Re8 {[%emt 0:07:02]} 12. Bd2 {[%emt 0:03:38]} Bd6 {[%emt 0:02:21]} 13. Rc1 {[%emt 0:05:42]} Ne4 {[%emt 0:01:06]} 14. Nb5 {[%emt 0:10:34]} Ndf6 {[%emt 0:11:38]} 15. Nxd6 {[%emt 0:00:59]} Nxd6 {[%emt 0:01:05]} 16. Bb1 {[%emt 0:07:17]} Nfe4 {[%emt 0:03:30]} 17. Bc3 {[%emt 0:04:18]} c4 {[%emt 0:02:25]} 18. Bb4 {[%emt 0:06:15]} f6 {[%emt 0:03:17]} 19. b3 {[%emt 0:04:46]} b5 {[%emt 0:01:57]} 20. a4 {[%emt 0:04:11]} a6 {[%emt 0:01:43]} 21. a5 {[%emt 0:08:52]} Bc6 {[%emt 0:00:35]} 22. Qc2 {[%emt 0:00:50]} Rc8 {[%emt 0:09:38]} 23. h3 {[%emt 0:07:54]} cxb3 {[%emt 0:02:33]} 24. Qxb3 {[%emt 0:00:14]} Nc4 {[%emt 0:00:12]} 25. Qa2 {[%emt 0:02:49]} Qd7 {[%emt 0:02:29]} 26. Qc2 {[%emt 0:03:00]} Qc7 {[%emt 0:00:30]} 27. Qa2 {[%emt 0:03:39]} Qd7 {[%emt 0:03:19]} 28. Qc2 {[%emt 0:01:13]} Bb7 {[%emt 0:00:57]} 29. Qb3 {[%emt 0:04:16]} Rc6 {[%emt 0:02:27]} 30. Rc2 {[%emt 0:02:32]} Rec8 {[%emt 0:00:29]} 31. Rec1 {[%emt 0:00:42]} Qd8 {[%emt 0:03:12]} 32. Qa2 {[%emt 0:00:48]} Ned6 {[%emt 0:01:27]} 33. Rc3 {[%emt 0:01:05]} Ne4 {[%emt 0:01:20]} 34. Bxe4 {[%emt 0:00:25]} dxe4 {[%emt 0:00:27]} 35. Nd2 {[%emt 0:00:18]} Qd5 {[%emt 0:02:17]} 36. Nxc4 {[%emt 0:00:23]} Rxc4 {[%emt 0:05:33]} 37. Rxc4 {[%emt 0:00:17]} Rxc4 {[%emt 0:00:40]} 38. Rxc4 {[%emt 0:00:23]} bxc4 {[%emt 0:01:45]} 39. Qa3 {[%emt 0:01:31]} Qc6 {[%emt 0:02:33]} 40. Bc3 {[%emt 0:01:09]} Qc7 {[%emt 0:03:22]} 41. Qb4 {[%emt 0:00:48]} Bd5 {[%emt 0:00:48]} 42. Bb2 {[%emt 0:00:44]} Qb7 {[%emt 0:01:19]} 43. Qa3 {[%emt 0:01:09]} h6 {[%emt 0:04:16]} 44. Bc3 {[%emt 0:00:45]} f5 {[%emt 0:03:41]} 45. Kh2 {[%emt 0:00:21]} Qb8+ {[%emt 0:00:59]} 46. Kg1 {[%emt 0:00:29]} Qb1+ {[%emt 0:00:07]} 47. Kh2 {[%emt 0:00:04]} Qb8+ {[%emt 0:00:07]} 48. Kg1 {[%emt 0:00:04]} Qb1+ {[%emt 0:00:10]} 49. Kh2 {[%emt 0:00:04]} Qb8+ {[%emt 0:00:43]} 50. Kg1 {[%emt 0:00:05]} 1/2-1/2

[Event "FIDE WCCC Girls-10 2024"]
[Site "Montesilvano"]
[Date "2024.11.23"]
[Round "8.18"]
[White "Sun, Yucan(Sd)"]
[Black "Afandi, Sadagul"]
[Result "1-0"]
[Annotator "NA RC"]
[ECO "B01"]
[WhiteElo "1725"]
[BlackElo "1625"]
[PlyCount "153"]
[EventDate "2024.11.18"]
[EventType "swiss"]
[EventCountry "ITA"]
[SourceTitle "playchess.com"]
[Source "ChessBase"]
[SourceQuality "1"]
[TimeControl "5400+30"]

1. e4 {[%emt 0:00:02]} d5 {[%emt 0:00:20]} 2. exd5 {[%emt 0:00:08]} Nf6 {[%emt 0:00:05]} 3. d4 {[%emt 0:00:35]} Nxd5 {[%emt 1:31:35]} 4. c4 {[%emt 0:00:21]} Nf6 {[%emt 0:00:00]} 5. Nf3 {[%emt 0:00:38]} e6 {[%emt 0:00:00]} 6. Be2 {[%emt 0:01:38]} c5 {[%emt 0:00:00]} 7. O-O {[%emt 0:02:52]} cxd4 {[%emt 0:00:00]} 8. Nxd4 {[%emt 0:00:46]} Bc5 {[%emt 0:00:00]} 9. Be3 {[%emt 0:03:48]} O-O {[%emt 0:00:00]} 10. Nc3 {[%emt 0:09:42]} e5 {[%emt 0:00:00]} 11. Ndb5 {[%emt 0:05:30]} Na6 {[%emt 0:00:00]} 12. Bg5 {[%emt 0:10:36]} Be7 {[%emt 0:00:00]} 13. Bf3 {[%emt 0:06:41]} Nc5 {[%emt 0:00:00]} 14. Qc2 {[%emt 0:13:39]} a6 {[%emt 0:00:00]} 15. Na3 {[%emt 0:07:45]} Ne6 {[%emt 0:00:00]} 16. Bxf6 {[%emt 0:10:49]} Bxf6 {[%emt 0:00:00]} 17. Ne2 {[%emt 0:07:18]} Qc7 {[%emt 0:00:00]} 18. Be4 {[%emt 0:09:10]} Bd7 {[%emt 0:00:00]} 19. Bxh7+ {[%emt 0:00:47]} Kh8 {[%emt 0:00:00]} 20. Be4 {[%emt 0:00:20]} Nc5 {[%emt 0:00:00]} 21. Bf5 {[%emt 0:02:50]} Bc6 {[%emt 0:00:00]} 22. Qc3 {[%emt 0:02:24]} g6 {[%emt 0:00:00]} 23. Bc2 {[%emt 0:01:09]} Kg7 {[%emt 0:00:00]} 24. Qg3 {[%emt 0:01:15]} Rh8 {[%emt 0:01:17]} 25. h3 {[%emt 0:01:05]} Rh5 {[%emt 0:01:46]} 26. f3 {[%emt 0:00:34]} Rah8 {[%emt 0:00:45]} 27. b4 {[%emt 0:00:18]} Rg5 {[%emt 0:00:56]} 28. Qh2 {[%emt 0:00:08]} Ne6 {[%emt 0:03:12]} 29. Rad1 {[%emt 0:00:30]} Nf4 {[%emt 0:01:46]} 30. Nxf4 {[%emt 0:02:12]} exf4 {[%emt 0:00:05]} 31. Rf2 {[%emt 0:00:00]} Bd7 {[%emt 0:00:40]} 32. Kf1 {[%emt 0:00:00]} Bb2 {[%emt 0:01:16]} 33. Nb1 {[%emt 0:00:00]} Qxc4+ {[%emt 0:01:28]} 34. Bd3 {[%emt 0:00:00]} Qxb4 {[%emt 0:00:36]} 35. Be2 {[%emt 0:00:49]} Bd4 {[%emt 0:00:36]} 36. Qxf4 {[%emt 0:00:18]} Rd5 {[%emt 0:01:04]} 37. Bd3 {[%emt 0:00:55]} Qb6 {[%emt 0:00:44]} 38. Re2 {[%emt 0:01:02]} Bc5 {[%emt 0:00:28]} 39. Nc3 {[%emt 0:00:18]} Rd6 {[%emt 0:00:33]} 40. Qe5+ {[%emt 0:00:26]} Kg8 {[%emt 0:00:30]} 41. Ne4 {[%emt 0:00:28]} Re6 {[%emt 0:00:37]} 42. Qxc5 {[%emt 0:00:12]} Qxc5 {[%emt 0:00:27]} 43. Nxc5 {[%emt 0:02:02]} Rd6 {[%emt 0:00:12]} 44. Nxd7 {[%emt 0:00:00]} Rxd7 {[%emt 0:00:06]} 45. Re8+ {[%emt 0:00:00]} Kg7 {[%emt 0:00:05]} 46. Rxh8 {[%emt 0:00:00]} Kxh8 {[%emt 0:00:04]} 47. Bc2 {[%emt 0:00:00]} Rxd1+ {[%emt 0:00:06]} 48. Bxd1 {[%emt 0:00:00]} Kg7 {[%emt 0:00:06]} 49. Ke2 {[%emt 0:00:00]} Kf6 {[%emt 0:00:05]} 50. Ke3 {[%emt 0:00:00]} Kf5 {[%emt 0:00:08]} 51. Kd4 {[%emt 0:00:00]} Kf4 {[%emt 0:00:06]} 52. g4 {[%emt 0:00:00]} Kg3 {[%emt 0:00:04]} 53. Kc5 {[%emt 0:00:00]} Kxh3 {[%emt 0:00:07]} 54. Kb6 {[%emt 0:00:00]} Kg3 {[%emt 0:00:09]} 55. Kxb7 {[%emt 0:00:00]} Kf2 {[%emt 0:00:03]} 56. Kxa6 {[%emt 0:00:00]} Ke1 {[%emt 0:00:04]} 57. Bb3 {[%emt 0:00:00]} f6 {[%emt 0:00:05]} 58. a4 {[%emt 0:00:00]} g5 {[%emt 0:00:04]} 59. a5 {[%emt 0:00:00]} Kf2 {[%emt 0:00:04]} 60. Bd5 {[%emt 0:00:00]} Ke3 {[%emt 0:00:06]} 61. Kb6 {[%emt 0:00:00]} Kd4 {[%emt 0:00:07]} 62. a6 {[%emt 0:00:47]} Kxd5 {[%emt 0:00:10]} 63. a7 {[%emt 0:00:06]} Ke5 {[%emt 0:00:03]} 64. a8=Q {[%emt 0:00:06]} Kf4 {[%emt 0:00:03]} 65. Qe4+ {[%emt 0:00:05]} Kg3 {[%emt 0:00:05]} 66. Qf5 {[%emt 0:00:13]} Kh4 {[%emt 0:00:06]} 67. Qxf6 {[%emt 0:00:05]} Kh3 {[%emt 0:00:04]} 68. Qxg5 {[%emt 0:00:05]} Kh2 {[%emt 0:00:04]} 69. f4 {[%emt 0:00:06]} Kg2 {[%emt 0:00:05]} 70. f5 {[%emt 0:00:02]} Kh3 {[%emt 0:00:05]} 71. f6 {[%emt 0:00:03]} Kg3 {[%emt 0:00:08]} 72. f7 {[%emt 0:00:04]} Kh3 {[%emt 0:00:22]} 73. f8=Q {[%emt 0:00:05]} Kg3 {[%emt 0:00:09]} 74. Qff4+ {[%emt 0:00:12]} Kh3 {[%emt 0:00:06]} 75. Qf3+ {[%emt 0:00:04]} Kh2 {[%emt 0:00:06]} 76. Qd2+ {[%emt 0:00:04]} Kg1 {[%emt 0:00:09]} 77. Qfd1# {[%emt 0:00:33]} 1-0